Cogmind - Beta 13 @@@ ROGUE MODE // 2024.04.01 @ 15:29:26 Player: SnowyImp Result: Destroyed by G-47 Trooper with Particle Gun Performance ------------- Evolutions (2) 1000 Regions Visited (5) 1000 Robots Destroyed (46) 230 Value Destroyed (1491) 1491 Prototype IDs (3) 60 Alien Tech Used (0) 0 Bonus (451) 451 TOTAL SCORE: 4232 Bonus ------- Pacifist 200 High Alert Combat Kills 59 Entered Garrisons 200 Friendly Fire -8 Cogmind --------- Core Integrity 0/550 Matter 197/300 Energy 81/265 System Corruption 0% Temperature Cool (21) Movement Flying (27) Location -8/Storage Parts ------- > --- POWER (1) -------- Reinforced Ion Engine > --- PROPULSION (4) --- Flight Unit Cooled VTOL Module Cooled VTOL Module Cooled VTOL Module > --- UTILITY (3) ------ Advanced Heat Sink Weight Redist. System Drone Bay (2/2) > --- WEAPON (3) ------- Light Assault Rifle Light Assault Rifle > --- INVENTORY (5) ---- Improved Cooling System Improved Cooling System Improved Cooling System Weapon Shielding Weapon Shielding Peak State ------------ > --- POWER ------------ Deuterium Engine > --- PROPULSION ------- Improved Titanium Leg Improved Titanium Leg Improved Titanium Leg Improved Titanium Leg > --- UTILITY ---------- Improved Cooling System Small Storage Unit Signal Interpreter > --- WEAPON ----------- EM Pulse Cannon High-powered Shotgun High-powered Shotgun > --- INVENTORY -------- Cooled VTOL Module Cooled VTOL Module Cooled VTOL Module Improved Cooling System Improved Cooling System Improved Cooling System Weapon Shielding Weapon Shielding [Rating: 36] Favorites ----------- Power Ion Engine Engine Ion Engine Propulsion Aluminum Leg Treads Light Treads Leg Aluminum Leg Flight Unit Cooled VTOL Module Utility Small Storage Unit Device Improved Cooling System Storage Small Storage Unit Processor Signal Interpreter Weapon Light Assault Rifle Energy Gun EM Shotgun Energy Cannon Light EM Pulse Cannon Ballistic Gun Light Assault Rifle Launcher Rocket Launcher Special Weapon Plasma Cutter Impact Weapon Hammer Build | -11 -10 -9 -8 -8 -8 ------- Run | Yrd Mat Mat Mat Gar Sto Slots Evolved 4 | . . 2 2 . . Power . | . . . . . . Propulsion 2 | . . 2 . . . Utility 1 | . . . 1 . . Weapon 1 | . . . 1 . . Parts Attached 73 | 6 2 14 27 19 5 Power 7 | 1 . 1 2 3 . Engine 7 | 1 . 1 2 3 . Core . | . . . . . . Reactor . | . . . . . . Propulsion 30 | 2 . 5 17 6 . Treads 3 | 2 . . . 1 . Leg 19 | . . 5 14 . . Wheel . | . . . . . . Hover . | . . . . . . Flight 8 | . . . 3 5 . Utility 10 | 1 2 . 1 3 3 Device 8 | . 1 . 1 3 3 Storage 1 | 1 . . . . . Processor 1 | . 1 . . . . Hackware . | . . . . . . Protection . | . . . . . . Artifact . | . . . . . . Weapon 26 | 2 . 8 7 7 2 Energy Gun 3 | . . . 2 1 . Energy Cannon 3 | . . 1 2 . . Ballistic Gun 14 | 2 . 2 3 5 2 Ballistic Cannon . | . . . . . . Launcher 1 | . . 1 . . . Special Weapon 3 | . . 3 . . . Impact Weapon 2 | . . 1 . 1 . Slashing Weapon . | . . . . . . Piercing Weapon . | . . . . . . Special Melee Weapon . | . . . . . . Unidentified Prototypes 1 | . . . 1 . . Parts Lost 25 | . . 8 4 13 . Power 4 | . . 1 1 2 . Propulsion 9 | . . 3 1 5 . Utility 2 | . . . . 2 . Weapon 10 | . . 4 2 4 . Highest Loss Streak 13 | . . 5 3 13 . To Critical Strikes . | . . . . . . Average Slot Usage (%) 90 | . 99 89 92 79 85 Engine 9 | . 14 11 7 6 9 Treads 5 | . 28 5 . 1 . Leg 20 | . . 30 32 8 . Flight 6 | . . . . 19 36 Device 6 | . 2 . 9 5 20 Storage 8 | . 14 11 9 5 . Processor 8 | . 11 11 9 6 . Energy Gun 3 | . . . 4 6 3 Energy Cannon 4 | . . 2 10 . . Ballistic Gun 12 | . 28 3 9 18 16 Impact Weapon 1 | . . 7 . 1 . Naked Turns . | . . . . . . Heaviest Build 29 | 13 14 17 29 21 19 Greatest Support 80 | 40 40 40 80 45 25 Greatest Overweight (x) 4 | . . . 4 1 . Average Overweight (x) . | . . . . . . Largest Inventory Capacity 8 | 8 8 8 8 8 5 Average Capacity 7 | 7 8 8 8 7 5 Most Carried 8 | 4 8 8 8 8 5 Average Carried 6 | 1 5 4 7 6 5 Final Capacity 8 | 8 8 8 8 5 5 Final Carried 8 | 4 8 4 8 5 5 Class Distribution -------------------- 50% | Mutant 29% | Gunner 12% | Scavenger-Sprinter 4% | Sprinter Dominant Class ---------------- Mutant | -10/Materials Mutant | -9/Materials Gunner | -8/Materials Sprinter | -8/Garrison Scavenger-Sprinter | -8/Storage Resources | -11 -10 -9 -8 -8 -8 ----------- Run | Yrd Mat Mat Mat Gar Sto Matter Collected 1328 | 205 . 250 566 306 1 Remotely . | . . . . . . Salvage Created 1431 | . . 309 599 414 109 Parts 90 | . . 29 32 25 4 Haulers Intercepted 1 | . . . 1 . . Recyclers Shooed 1 | . . 1 . . . Parts Field Recycled . | . . . . . . Retrieved Matter . | . . . . . . Parts Self-Destructed . | . . . . . . Prevented . | . . . . . . Kills | -11 -10 -9 -8 -8 -8 ------- Run | Yrd Mat Mat Mat Gar Sto Combat Hostiles Destroyed 38 | . . 11 14 11 2 Melee 2 | . . 2 . . . Guns 27 | . . 1 13 11 2 Cannons 2 | . . 1 1 . . AOE 6 | . . 6 . . . Classes Destroyed 9 | . . 7 1 1 . Worker 2 | . . 1 1 . . Builder 1 | . . 1 . . . Hauler 1 | . . . 1 . . Recycler 1 | . . 1 . . . Watcher 3 | . . 3 . . . Swarmer 9 | . . 3 2 4 . Grunt 19 | . . 4 9 4 2 Brawler 1 | . . . . 1 . Sentry 9 | . . 4 3 2 . Best Kill Streak 8 | . . 8 6 5 2 Combat Bots Only 5 | . . 3 5 5 2 Max Kills in Single Turn 2 | . . 2 2 2 1 Gunslinging 1 | . . . . 1 . Exploded 1 | . . 1 . . . Melee 1 | . . 1 . . . Uniques/NPCs Destroyed . | . . . . . . Combat | -11 -10 -9 -8 -8 -8 -------- Run | Yrd Mat Mat Mat Gar Sto Hostile Shots Fired 446 | . . 140 134 147 25 Missed 152 | . . 47 43 47 15 Damage Taken 3953 | . . 1102 1343 1353 155 Core 721 | . . 160 153 363 45 Absorbed by Shields . | . . . . . . Core Remaining (%) 86 | 100 100 60 . . . Volleys Fired 115 | . . 25 47 26 17 Largest 3 | . . 2 3 3 3 Hottest 164 | . . 79 164 110 109 Shots Fired 247 | . . 31 101 70 45 Gun 196 | . . 3 78 70 45 Cannon 27 | . . 4 23 . . Launcher 18 | . . 18 . . . Special 6 | . . 6 . . . Kinetic 168 | . . 3 70 61 34 Thermal 26 | . . 6 . 9 11 Explosive 18 | . . 18 . . . Electromagnetic 35 | . . 4 31 . . Robot Hit Streak 9 | . . 9 8 7 3 Robot Miss Streak 6 | . . 2 6 3 4 Penetration Max . | . . . . . . Secondary Targets 9 | . . . 3 5 1 Max Gunslinging Chain 1 | . . . 1 1 1 Shots Hit Robots 166 | . . 30 67 45 24 Core Hits 100 | . . 28 35 24 13 Critical Kills 1 | . . 1 . . . Critical Parts Destroyed 2 | . . 1 . 1 . Critical Strikes 4 | . . 2 . 1 1 Burn 1 | . . . . . 1 Destroy 1 | . . . . 1 . Smash 2 | . . 2 . . . Melee Attacks 15 | . . 14 . 1 . Impact 15 | . . 14 . 1 . Slashing . | . . . . . . Piercing . | . . . . . . Sneak Attacks . | . . . . . . Combat Hostiles . | . . . . . . Follow-up Attacks . | . . . . . . Damage Inflicted 3334 | . . 1192 1170 661 311 Guns 1931 | . . 10 972 638 311 Cannons 236 | . . 55 181 . . Explosions 865 | . . 865 . . . Melee 226 | . . 205 . 21 . Ramming 19 | . . . 17 2 . Kinetic 1598 | . . 10 861 547 180 Thermal 279 | . . 57 . 91 131 Explosive 865 | . . 865 . . . Electromagnetic 347 | . . 55 292 . . Impact 226 | . . 205 . 21 . Slashing . | . . . . . . Piercing . | . . . . . . Highest Corruption . | . . . . . . Average Corruption . | . . . . . . Corruption Purged . | . . . . . . Corruption Blocked . | . . . . . . Overload Shots . | . . . . . . Overflow Damage 38 | . . 33 5 . . Projectiles 5 | . . . 5 . . Explosions 17 | . . 17 . . . Melee 16 | . . 16 . . . Knockbacks . | . . . . . . Impact . | . . . . . . Kinetic . | . . . . . . Secondary . | . . . . . . Self-Inflicted Damage 1 | . . . . 1 . Shots . | . . . . . . Rammed 1 | . . . . 1 . Targets Rammed 3 | . . . 2 1 . Kicked 2 | . . . 2 . . Crushed . | . . . . . . Highest Temperature 98 | . . 18 30 98 80 Average Temperature 22 | . . 6 7 33 31 Received Heat Transfer 1803 | . . 444 711 567 81 Siege Activations . | . . . . . . Robots Corrupted . | . . . . . . Combat Hostiles . | . . . . . . Parts Fried 1 | . . 1 . . . Impact Corruptions 2 | . . 2 . . . Robots Melted . | . . . . . . Combat Hostiles . | . . . . . . Parts Melted . | . . . . . . Heat Transferred 740 | . . 185 . 222 333 Parts Sabotaged . | . . . . . . Parts Stolen . | . . . . . . Parts Stripped . | . . . . . . Power Chain Reactions . | . . . . . . Alert | -11 -10 -9 -8 -8 -8 ------- Run | Yrd Mat Mat Mat Gar Sto Peak Influence 450 | . 15 450 412 437 326 Initial 267 | . . 5 189 267 212 Average 203 | . 2 203 227 367 283 Maximum Alert Level 2 | . . 2 2 2 1 Low Security (%) 43 | 100 100 45 40 . . Level 1 44 | . . 32 55 60 100 Level 2 11 | . . 21 4 40 . Level 3 . | . . . . . . Level 4 . | . . . . . . Level 5 . | . . . . . . High Security . | . . . . . . Max Security . | . . . . . . Squads Dispatched 11 | . . 3 4 . 4 Investigation 7 | . . 3 1 . 3 Extermination . | . . . . . . Reinforcement 3 | . . . 2 . 1 Assault . | . . . . . . Garrison 1 | . . . 1 . . Intercept . | . . . . . . Searches Triggered . | . . . . . . Construction Impeded . | . . . . . . Haulers Reinforced . | . . . . . . Active Scanning Responses . | . . . . . . Cargo Convoy Interrupts . | . . . . . . Stealth | -11 -10 -9 -8 -8 -8 --------- Run | Yrd Mat Mat Mat Gar Sto Distress Signals 3 | . . 2 . . 1 Communications Jammed . | . . . . . . Distress Signals . | . . . . . . Times Spotted 66 | . 4 18 16 13 15 Peak Tracking Total 10 | . 3 5 4 10 9 Tactical Retreats 4 | . . . 2 1 1 Traps | -11 -10 -9 -8 -8 -8 ------- Run | Yrd Mat Mat Mat Gar Sto Traps Triggered 1 | . . 1 . . . Indirectly . | . . . . . . Trap Hack Attempts . | . . . . . . Triggered . | . . . . . . Disarmed 1 | . . . . . 1 Reprogrammed . | . . . . . . Reused . | . . . . . . Traps Extracted . | . . . . . . Installed . | . . . . . . Triggered . | . . . . . . Machines | -11 -10 -9 -8 -8 -8 ---------- Run | Yrd Mat Mat Mat Gar Sto Machines Disabled 4 | . . 3 . . 1 Max in Single Turn 2 | . . 2 . . 1 Machines Repaired . | . . . . . . Machines Dismantled . | . . . . . . Machines Sabotaged . | . . . . . . Overloaded Fab Kills . | . . . . . . Hacking | -11 -10 -9 -8 -8 -8 --------- Run | Yrd Mat Mat Mat Gar Sto Machines Accessed 18 | . 5 3 1 . 9 Terminals 13 | . 3 2 . . 8 Fabricators . | . . . . . . Repair Stations . | . . . . . . Recycling Units 4 | . 2 1 . . 1 Scanalyzers . | . . . . . . Garrison Access 1 | . . . 1 . . Total Hacks 39 | . 8 9 2 . 20 Successful 17 | . 5 3 2 . 7 Failed 22 | . 3 6 . . 13 Catastrophic 7 | . . 3 . . 4 Database Lockouts . | . . . . . . Manual 2 | . . . . . 2 Terminals 29 | . 5 5 . . 19 Fabricators . | . . . . . . Repair Stations . | . . . . . . Recycling Units 8 | . 3 4 . . 1 Scanalyzers . | . . . . . . Garrison Access 2 | . . . 2 . . Terminal Hacks 13 | . 3 3 . . 7 Record 2 | . . 2 . . . Prototype ID Bank 1 | . 1 . . . . Open Door 1 | . . . . . 1 Branch Access Points 1 | . . . . . 1 Alert Level 1 | . 1 . . . . Locate Traps 1 | . 1 . . . . Disarm Traps 1 | . . . . . 1 Dispatch Records 1 | . . . . . 1 Reinforcement Status 1 | . . . . . 1 Recall Investigation 2 | . . 1 . . 1 Recall Reinforcements 1 | . . . . . 1 Fabricator Hacks . | . . . . . . Repair Station Hacks . | . . . . . . Recycling Unit Hacks 2 | . 2 . . . . Retrieve Components 2 | . 2 . . . . Scanalyzer . | . . . . . . Garrison Access Hacks 2 | . . . 2 . . Unlock Access 1 | . . . 1 . . Coupler Status 1 | . . . 1 . . Unauthorized Hacks . | . . . . . . Terminals . | . . . . . . Fabricators . | . . . . . . Repair Stations . | . . . . . . Recycling Units . | . . . . . . Scanalyzers . | . . . . . . Garrison Access . | . . . . . . Data Cores Recovered . | . . . . . . Used . | . . . . . . Hacking Detections 15 | . 3 3 . . 9 Full Trace Events 5 | . . 2 . . 3 Feedback Events . | . . . . . . Feedback Blocked . | . . . . . . Robot Schematics Acquired . | . . . . . . Robots Built . | . . . . . . Authchips . | . . . . . . Time . | . . . . . . Total Robot Build Rating . | . . . . . . Part Schematics Acquired . | . . . . . . Parts Built . | . . . . . . Authchips . | . . . . . . Time . | . . . . . . Total Part Build Rating . | . . . . . . Parts Repaired . | . . . . . . Time . | . . . . . . Parts Recycled . | . . . . . . Recycled Matter . | . . . . . . Retrieved Matter . | . . . . . . Retrieved Components 4 | . 4 . . . . Parts Scanalyzed . | . . . . . . Part Schematics Acquired . | . . . . . . Parts Damaged . | . . . . . . Bothacking | -11 -10 -9 -8 -8 -8 ------------ Run | Yrd Mat Mat Mat Gar Sto Used RIF Installer . | . . . . . . Robots Hacked . | . . . . . . Non-combat . | . . . . . . Combat . | . . . . . . Robot Hacks Applied . | . . . . . . Relay Couplers Released . | . . . . . . Fabnet Peak Effective % . | . . . . . . Robots Rewired . | . . . . . . Allies Hacked . | . . . . . . Hacks Repelled . | . . . . . . Allies | -11 -10 -9 -8 -8 -8 -------- Run | Yrd Mat Mat Mat Gar Sto Total Allies . | . . . . . . Largest Group . | . . . . . . Highest-Rated Group . | . . . . . . Highest-Rated Ally . | . . . . . . Total Orders 1 | . . . . . 1 FOLLOW 1 | . . . . . 1 Ally Attacks . | . . . . . . Total Damage . | . . . . . . Kills . | . . . . . . Allies Corrupted . | . . . . . . Allies Melted . | . . . . . . Intel | -11 -10 -9 -8 -8 -8 ------- Run | Yrd Mat Mat Mat Gar Sto Robot Analysis Total . | . . . . . . Derelict Logs Recovered . | . . . . . . Drone Launches 16 | . . . . . 16 Drone Recoveries 2 | . . . . . 2 Exploration | -11 -10 -9 -8 -8 -8 ------------- Run | Yrd Mat Mat Mat Gar Sto Turns Passed 1771 | 78 262 362 669 250 150 Spaces Moved 1205 | 43 157 186 340 168 311 Core 2 | 2 . . . . . Treads 227 | 41 157 26 . 3 . Legs 551 | . . 160 336 55 . Wheels . | . . . . . . Hover . | . . . . . . Flight 425 | . . . 4 110 311 Fastest Speed 27 | 50 160 120 94 27 27 Average Speed 97 | 154 160 125 127 63 27 Slowest Speed 295 | 160 160 160 295 190 27 Overloaded Moves . | . . . . . . Propulsion Burnouts . | . . . . . . Robots Hopped 2 | . . . . 1 1 Cave-ins Triggered . | . . . . . . Exploration Rate (%) 30 | 4 39 27 22 27 65 Regions Visited 5 Branch Regions 1 Pre-discovered Areas . | . . . . . . Known Exits Taken 3 | . 1 1 1 . . Unknown Exits Taken 1 | 1 . . . . . Scrap Searched . | . . . . . . Spaces Dug . | . . . . . . Terrain Destroyed 90 | . . 90 . . . Melee . | . . . . . . Projectile . | . . . . . . AOE 90 | . . 90 . . . Terrain Rammed . | . . . . . . Walls Destroyed . | . . . . . . Machines Disabled . | . . . . . . Actions | -11 -10 -9 -8 -8 -8 --------- Run | Yrd Mat Mat Mat Gar Sto Total 1555 | 52 168 251 484 252 348 Wait 94 | . 3 6 48 32 5 Move 1196 | 42 156 185 339 165 309 Hop 2 | . . . . 1 1 Pick Up 14 | 4 5 2 3 . . Fast Attach 54 | 6 2 8 17 16 5 Attach 9 | . . 5 1 3 . Detach 1 | . . . 1 . . Swap 10 | . . 1 9 . . Drop 35 | . 2 5 17 7 4 Fire 115 | . . 25 47 26 17 Melee 15 | . . 14 . 1 . Ram 1 | . . . . 1 . Kick 2 | . . . 2 . . Crush . | . . . . . . Escape Stasis . | . . . . . . Rewire . | . . . . . . Trap . | . . . . . . Miscellaneous 7 | . . . . . 7 Route ------- -11/Scrapyard -10/Materials -9/Materials -8/Materials -8/Garrison -8/Storage (discovered 1 exit: Rec) History --------- Turn | Location | Event 18 | -11/Scrapyard | Discovered new exit (range 15) 79 | -11/Scrapyard | Entered Materials 314 | -10/Materials | Build established: Mutant 317 | -10/Materials | Discovered new exit (range 12) 339 | -10/Materials | Identified exit to Materials 341 | -10/Materials | Entered another Materials area 341 | -9/Materials | Evolved 2 slots: Propulsion x2 471 | -9/Materials | Lost 5 parts (1p1n3w) 685 | -9/Materials | Discovered new exit (range 14) 702 | -9/Materials | Identified exit to Materials 703 | -9/Materials | Entered another Materials area 703 | -8/Materials | Evolved 2 slots: Utility x1, Weapon x1 1008 | -8/Materials | Build established: Gunner 1291 | -8/Materials | Garrison activated, responded to threat 1358 | -8/Materials | Lost 3 parts (1p1n1w) 1363 | -8/Materials | Identified exit to Garrison 1372 | -8/Materials | Entered Garrison 1424 | -8/Garrison | Triggered checkpoint 1462 | -8/Garrison | Core integrity fell below 50% 1528 | -8/Garrison | Core integrity fell below 20% 1580 | -8/Garrison | Lost 13 parts (2p5n2u4w) 1620 | -8/Garrison | Discovered new exit (range 10) 1622 | -8/Garrison | Entered Storage 1745 | -8/Storage | Identified exit to Recycling 1772 | -8/Storage | Destroyed by G-47 Trooper with Particle Gun Last Messages --------------- 01756_ Massive razor-sharp blades shoot up from within the floor. 01756_ Hover Unit severed. 01756_ Hover Unit disintegrated. 01756_ Lgt. Ion Engine severed. 01756_ Lgt. Ion Engine disintegrated. 01756_ Hover Unit severed. 01756_ Hover Unit disintegrated. 01756_ Drone retrieved by Drone Bay. 01758_ K-01 Serf collects debris. 01760_ Drone destroyed. 01761_ Compression Vault explodes. 01761_ S-10 Pest destroyed. 01761_ Drone destroyed. 01761_ K-01 Serf collects debris. 01763_ Connecting with Door Terminal... 01765_ K-01 Serf collects debris. 01766_ Acquired 1 matter. 01766_ Drone destroyed. 01768_ K-01 Serf collects debris. Map ----- +----------------------------------------------------+ | ??????????????????????????????????????## """ #? | | ??????????????????????????????????????# / """ #? | | ???????????????????????????????????????# """ #? | | ???????????????????????????????????????# #" | | ???????????????????????????????????????# """ ## | | ???????????????????????????????????????# """ #T | | ???????????????????????????????????????# """ ## | | ???????????????????????????????????????# ## | | ???????????????????????????????????????######+#+## | | ???????????????????????????????############## | | ???????????????????????????????#] #^ | | ???????????????????????????????# %k # | | ???????????????????????????????# n u# % | | ???????????????????????????????# k nn ! + | | ???????????????????????????????#tnn t# | | ?????????????????????????????###n############% | | ?????????????????????????????# ########## | | ?????????????????????????????# % | | ?????????????????????????????# T | | ?????????????????????????????# ########## | | ??#############################+#####??????###"Y"# | | ??# ## + #????????#"""# | | ??# ## # #????????##### | | ### ## # """" #????????????? | | ###########+####### + "???" #????????????? | | ### # # #?#@## "????" #????????????? | | ??# %%# "" # """ ###g## "????? #????????????? | | ??#% # Y" # """ + a## ??????#????????????? | | ??# # "" # """ ### ## ??????????????????? | | ??# + # #?# ## ?????????????????? | | ??# # """ # """ #?# ######?????????????????? | | ??# # """ # """ #?# #???????????????? ???? | | ??# # """ # """ #?# #???????????????? #??? | | ??# # # #?# #???????????????? #??? | | ??# %# """ ######+###?# #???????????????? #??? | | ??# # """ #????# ????# #???????????????? +??? | | ??# # """ #????# ????# #???????????????# #??? | | ### # ? #????# ????# #???????????????# #??? | | # ###?????????# ##### #???????????????# #??? | | # #???????????# +?????????#####?# #??? | | # #???????????# #?????????#"""#?# #??? | | # #???????????# #?????#####"T"### #??? | | + #???????##### #?????# # #??? | | # #???????#"""# #?????# # #??? | | ### #???????#"R"# #?????# # #??? | | #?# #####+###" "# #?????# + +??? | | ### #?????# # #??? | | ###"" %%####### """"" # #??? | | ??#"T!! """" / """"" # #??? | | ??#""!! """"" ##T######### """"" # #??? | +----------------------------------------------------+ Best States ------------- Heat Dissipation 64 Energy Generation 14 Energy Capacity 275 Matter Stores 290 Matter Capacity 300 Sight Range 16 Terrain Scan Density 10 Additional Mass Support 6 Evasion (%) 64 Recoil Reduction 2 Item Schematics ----------------- None Robot Schematics ------------------ None Fabricated ------------ Nothing Alien Tech Used ----------------- None Achievements -------------- GoHome() Loot Pinata Troublemaker Challenges ------------ None Game ------ Seed SpikedRegenerativeFilter Manual? 0 Play Time 00:41:07 Cumulative 5.3 hours Start 2024.04.01 @ 14:48:49 End 2024.04.01 @ 15:29:26 Sessions 1 Manual Loads 0 Difficulty Rogue Special Mode None Game No. 7 Rogue 7 Adventurer 0 Explorer 0 Win Type - Total 0 Types 0/0/0/0/0/0/0/0/0 Lore% 4 Gallery% 10 Achievement% 12 Wizard Run 0 Options --------- Layout 1 ASCII 0 Keyboard 0 Movement Numpad Keybinds 0 Fullscreen 1 Font 24/Crisp Map View 50x35 Zoom Use 0% Tactical HUD 1 Map Filters NONE Filters NONE Steam 1 RUN: 1bcdf7c1-1a2c-44f4-beee-ebdeff7abbc5